fUST/lending_fUST_20250623
["ID","MTS","AMOUNT","RATE_DAILY","PERIOD"]
[367127509,1750665043870,-460.0,0.00021917,2]
[367127511,1750665043880,-460.0,0.00021917,2]
[367127512,1750665043890,-1364.99,0.00021917,2]
[367127515,1750665043900,-460.0,0.00021917,2]
[367127517,1750665043910,-460.0,0.00021917,2]
[367127519,1750665043923,-460.0,0.00021917,2]
[367127521,1750665043933,-799.12,0.00021917,2]
[367127522,1750665043942,-460.0,0.00021917,2]
[367127524,1750665043951,-460.0,0.00021917,2]
[367127527,1750665043962,-460.0,0.00021917,2]
[367127529,1750665043972,-1274.98,0.00021917,2]
[367127531,1750665043981,-460.0,0.00021917,2]
[367127533,1750665043992,-460.0,0.00021917,2]
[367127535,1750665044001,-404.62798394,0.00021917,2]
[367127537,1750665044010,-1787.47,0.00021917,2]
[367127539,1750665044020,-460.0,0.00021917,2]
[367127541,1750665044028,-460.0,0.00021917,2]
[367127542,1750665044037,-460.0,0.00021917,2]
[367127544,1750665044046,-460.0,0.00021917,2]
[367127547,1750665044056,-460.0,0.00021917,2]
[367127548,1750665044065,-460.0,0.00021917,2]
[367127550,1750665044074,-460.0,0.00021917,2]
[367127553,1750665044084,-460.0,0.00021917,2]
[367127555,1750665044094,-460.0,0.00021917,2]
[367127556,1750665044103,-460.0,0.00021917,2]
[367127558,1750665044113,-897.81,0.00021917,2]
[367127560,1750665044122,-460.0,0.00021917,2]
[367127562,1750665044133,-460.0,0.00021917,2]
[367127564,1750665044143,-460.0,0.00021917,2]
[367127566,1750665044153,-1436.16,0.00021917,2]
[367127568,1750665044162,-460.0,0.00021917,2]
[367127570,1750665044172,-460.0,0.00021917,2]
[367127572,1750665044182,-555.12,0.00021917,2]
[367127574,1750665044192,-494.94,0.00021917,2]
[367127576,1750665044202,-667.1,0.00021917,2]
[367127578,1750665044212,-460.0,0.00021917,2]
[367127580,1750665044222,-460.0,0.00021917,2]
[367127582,1750665044232,-460.0,0.00021917,2]
[367127584,1750665044242,-9390.65,0.00021917,2]
[367127587,1750665044253,-436.42168427,0.00021917,2]
[367127589,1750665044263,-460.0,0.00021917,2]
[367127591,1750665044273,-958.78,0.00021917,2]
[367127593,1750665044282,-460.0,0.00021917,2]
[367127594,1750665044292,-460.0,0.00021917,2]
[367127597,1750665044302,-875.32,0.00021917,2]
[367127598,1750665044312,-460.0,0.00021917,2]
[367127600,1750665044321,-460.0,0.00021917,2]
[367127603,1750665044331,-460.0,0.00021917,2]
[367127605,1750665044341,-460.0,0.00021917,2]
[367127607,1750665044350,-460.0,0.00021917,2]
[367127608,1750665044359,-1211.19,0.00021917,2]
[367127611,1750665044369,-460.0,0.00021917,2]
[367127613,1750665044378,-725.37,0.00021917,2]
[367127615,1750665044387,-3169.24,0.00021917,2]
[367127617,1750665044397,-460.0,0.00021917,2]
[367127619,1750665044406,-447.00879276,0.00021917,2]
[367127621,1750665044416,-460.0,0.00021917,2]
[367127623,1750665044425,-460.0,0.00021917,2]
[367127625,1750665044434,-520.75,0.00021917,2]
[367127627,1750665044444,-460.0,0.00021917,2]
[367127629,1750665044453,-3819.49,0.00021917,2]
[367127631,1750665044463,-460.0,0.00021917,2]
[367127633,1750665044472,-537.16,0.00021917,2]
[367127635,1750665044482,-460.0,0.00021917,2]
[367127637,1750665044492,-460.0,0.00021917,2]
[367127639,1750665044501,-460.0,0.00021917,2]
[367127641,1750665044510,-624.72,0.00021917,2]
[367127643,1750665044519,-460.0,0.00021917,2]
[367127645,1750665044528,-460.0,0.00021917,2]
[367127647,1750665044537,-460.0,0.00021917,2]
[367127649,1750665044546,-460.0,0.00021917,2]
[367127651,1750665044555,-460.0,0.00021917,2]
[367127653,1750665044564,-169.64197916,0.00021917,2]
[367127655,1750665044574,-460.0,0.00021917,2]
[367127657,1750665044583,-2101.55,0.00021917,2]
[367127659,1750665044592,-8271.09,0.00021917,2]
[367127661,1750665044601,-460.0,0.00021917,2]
[367127663,1750665044611,-460.0,0.00021917,2]
[367127665,1750665044620,-460.0,0.00021917,2]
[367127667,1750665044630,-460.0,0.00021917,2]
[367127669,1750665044639,-363.98763162,0.00021917,2]
[367127671,1750665044648,-157.01829995,0.00021917,2]
[367127673,1750665044657,-460.0,0.00021917,2]
[367127675,1750665044666,-460.0,0.00021917,2]
[367127677,1750665044677,-460.0,0.00021917,2]
[367127679,1750665044686,-524.59,0.00021917,2]
[367127681,1750665044696,-758.75,0.00021917,2]
[367127683,1750665044706,-2025.07,0.00021917,2]
[367127686,1750665044724,-460.0,0.00021917,2]
[367127689,1750665044736,-818.6,0.00021917,2]
[367127691,1750665044746,-776.57,0.00021917,2]
[367127693,1750665044755,-460.0,0.00021917,2]
[367127695,1750665044764,-460.0,0.00021917,2]
[367127697,1750665044774,-460.0,0.00021917,2]
[367127699,1750665044783,-460.0,0.00021917,2]
[367127701,1750665044792,-460.0,0.00021917,2]
[367127703,1750665044801,-460.0,0.00021917,2]
[367127705,1750665044811,-460.0,0.00021917,2]
[367127707,1750665044820,-460.0,0.00021917,2]
[367127709,1750665044829,-866.94,0.00021917,2]
[367127711,1750665044839,-1557.88,0.00021917,2]
[367127712,1750665044849,-460.0,0.00021917,2]
[367127715,1750665044860,-460.0,0.00021917,2]
[367127717,1750665044869,-500.2,0.00021917,2]
[367127719,1750665044879,-500.0,0.00021917,2]
[367127721,1750665044888,-633.15,0.00021917,2]
[367127723,1750665044898,-460.0,0.00021917,2]
[367127725,1750665044907,-151.0,0.00021917,2]
[367127727,1750665044923,-460.0,0.00021917,2]
[367127729,1750665044932,-2287.98,0.00021917,2]
[367127731,1750665044942,-1219.35,0.00021917,2]
[367127733,1750665044952,-460.0,0.00021917,2]
[367127735,1750665044963,-151.0,0.00021917,2]
[367127737,1750665044973,-460.0,0.00021917,2]
[367127739,1750665044984,-460.0,0.00021917,2]
[367127741,1750665044994,-151.0,0.00021917,2]
[367127743,1750665045004,-6850.57,0.00021917,2]
[367127745,1750665045014,-151.0,0.00021917,2]
[367127747,1750665045023,-498.56,0.00021917,2]
[367127749,1750665045035,-5216.64,0.00021917,2]
[367127751,1750665045044,-568.72,0.00021917,2]
[367127754,1750665045054,-460.0,0.00021917,2]
[367127756,1750665045065,-460.0,0.00021917,2]
[367127758,1750665045076,-151.0,0.00021917,2]
[367127760,1750665045086,-1914.11,0.00021917,2]
[367127762,1750665045095,-151.0,0.00021917,2]
[367127764,1750665045106,-460.0,0.00021917,2]
[367127766,1750665045115,-460.0,0.00021917,2]
[367127768,1750665045126,-151.0,0.00021917,2]
[367127797,1750665045390,-993.65,0.00021917,2]
[367127799,1750665045400,-460.0,0.00021917,2]
[367127801,1750665045411,-151.0,0.00021917,2]
[367127803,1750665045420,-497.86,0.00021917,2]
[367127805,1750665045430,-644.99,0.00021917,2]
[367127807,1750665045439,-1257.55,0.00021917,2]
[367127809,1750665045449,-151.0,0.00021917,2]
[367127811,1750665045458,-2965.19,0.00021917,2]
[367127813,1750665045468,-803.03,0.00021917,2]
[367127815,1750665045477,-151.0,0.00021917,2]
[367127817,1750665045487,-500.0,0.00021917,2]
[367127819,1750665045496,-1038.79,0.00021917,2]
[367127821,1750665045506,-151.0,0.00021917,2]
[367127823,1750665045516,-460.0,0.00021917,2]
[367127825,1750665045525,-151.0,0.00021917,2]
[367127827,1750665045535,-460.0,0.00021917,2]
[367127829,1750665045544,-151.0,0.00021917,2]
[367127831,1750665045554,-460.0,0.00021917,2]
[367127833,1750665045564,-460.0,0.00021917,2]
[367127835,1750665045574,-460.0,0.00021917,2]
[367127837,1750665045583,-2313.34,0.00021917,2]
[367127839,1750665045593,-460.0,0.00021917,2]
[367127841,1750665045602,-1811.04,0.00021917,2]
[367127843,1750665045613,-610.84,0.00021917,2]
[367127845,1750665045622,-1431.61,0.00021917,2]
[367127847,1750665045632,-460.0,0.00021917,2]
[367127849,1750665045642,-686.82,0.00021917,2]
[367127851,1750665045651,-460.0,0.00021917,2]
[367127853,1750665045661,-460.0,0.00021917,2]
[367127855,1750665045671,-460.0,0.00021917,2]
[367127857,1750665045681,-21092.39,0.00021917,2]
[367127859,1750665045691,-460.0,0.00021917,2]
[367127861,1750665045700,-200.0,0.00021917,10]
[367127863,1750665045710,-2337.34,0.00021917,2]
[367127866,1750665045722,-200.0,0.00021917,10]
[367127868,1750665045733,-645.83,0.00021917,2]
[367127870,1750665045743,-200.0,0.00021917,10]
[367127872,1750665045752,-460.0,0.00021917,2]
[367127874,1750665045761,-200.0,0.00021917,10]
[367127876,1750665045771,-200.0,0.00021917,10]
[367127877,1750665045780,-460.0,0.00021917,2]
[367127880,1750665045790,-200.0,0.00021917,10]
[367127882,1750665045800,-200.0,0.00021917,10]
[367127884,1750665045810,-200.0,0.00021917,10]
[367127886,1750665045820,-460.0,0.00021917,2]
[367127888,1750665045830,-200.0,0.00021917,10]
[367127890,1750665045840,-5251.6,0.00021917,2]
[367127892,1750665045850,-200.0,0.00021917,10]
[367127894,1750665045860,-200.0,0.00021917,10]
[367127896,1750665045870,-200.0,0.00021917,10]
[367127898,1750665045880,-200.0,0.00021917,10]
[367127900,1750665045889,-200.0,0.00021917,10]
[367127902,1750665045898,-200.0,0.00021917,10]
[367127904,1750665045908,-919.83,0.00021917,2]
[367127906,1750665045923,-500.0,0.00021917,2]
[367127908,1750665045933,-536.05,0.00021917,2]
[367127910,1750665045942,-200.0,0.00021917,10]
[367127912,1750665045952,-240.604756,0.00021917,10]
[367127914,1750665045963,-460.0,0.00021917,2]
[367127916,1750665045973,-460.0,0.00021917,2]
[367127918,1750665045983,-460.0,0.00021917,2]
[367127920,1750665045994,-460.0,0.00021917,2]
[367127922,1750665046004,-460.0,0.00021917,2]
[367127924,1750665046013,-460.0,0.00021917,2]
[367127927,1750665046023,-460.0,0.00021917,2]
[367127929,1750665046032,-340.05117822,0.00021917,2]
[367127931,1750665046043,-710.47,0.00021917,2]
[367127934,1750665046054,-3001.5,0.00021917,2]
[367127936,1750665046065,-151.0,0.00021917,2]
[367127938,1750665046076,-747.22,0.00021917,2]
[367127940,1750665046086,-1593.42,0.00021917,2]
[367127942,1750665046096,-5393.99,0.00021917,2]
[367127944,1750665046106,-198.0,0.00021917,2]
[367127946,1750665046115,-460.0,0.00021917,2]
[367127948,1750665046125,-460.0,0.00021917,2]
[367127950,1750665046135,-460.0,0.00021917,2]
[367127952,1750665046145,-500.0,0.00021917,2]
[367127954,1750665046155,-1603.74,0.00021917,2]
[367127956,1750665046164,-1190.77,0.00021917,2]
[367127958,1750665046173,-991.86,0.00021917,2]
[367127960,1750665046183,-460.0,0.00021917,2]
[367127962,1750665046193,-460.0,0.00021917,2]
[367127964,1750665046202,-693.75,0.00021917,2]
[367127966,1750665046212,-460.0,0.00021917,2]
[367127968,1750665046222,-460.0,0.00021917,2]
[367127970,1750665046231,-6695.93,0.00021917,2]
[367127972,1750665046240,-400.0,0.00021918,7]
[367127974,1750665046250,-150.0,0.00021918,2]
[367127976,1750665046260,-500.0,0.00021944,2]
[367127978,1750665046269,-151.0,0.00021944,2]
[367127980,1750665046279,-151.0,0.00021944,2]
[367127982,1750665046291,-198.0,0.00021944,2]
[367127984,1750665046301,-151.0,0.00021944,2]
[367127986,1750665046310,-198.0,0.00021944,2]
[367127988,1750665046319,-151.0,0.00021944,2]
[367127990,1750665046330,-198.0,0.00021944,2]
[367127992,1750665046339,-151.0,0.00021944,2]
[367127994,1750665046349,-151.0,0.00021944,2]
[367127996,1750665046359,-151.0,0.00021944,2]
[367127998,1750665046368,-500.0,0.00021972,2]
[367128000,1750665046378,-151.0,0.00021972,2]
[367128002,1750665046387,-198.0,0.00021972,2]
[367128004,1750665046397,-198.0,0.00021972,2]
[367128006,1750665046406,-198.0,0.00021972,2]
[367128008,1750665046416,-198.0,0.00021972,2]
[367128010,1750665046426,-198.0,0.00021972,2]
[367128012,1750665046436,-198.0,0.00021972,2]
[367128014,1750665046445,-500.0,0.00021973,2]
[367128016,1750665046454,-505.60203517,0.00021973,2]
[367128018,1750665046464,-500.0,0.00021973,2]
[367128020,1750665046474,-502.55035468,0.00021973,2]
[367128022,1750665046483,-500.0,0.00021973,2]
[367128024,1750665046492,-399.34030724,0.00021973,2]
[367128026,1750665046502,-500.0,0.00021973,2]
[367128028,1750665046512,-211.19422828,0.00021973,2]
[367128029,1750665046522,-500.0,0.00021973,2]
[367128030,1750665046532,-500.0,0.00021973,2]
[367128031,1750665046542,-500.0,0.00021973,2]
[367128032,1750665046551,-500.0,0.00021973,2]
[367128033,1750665046561,-500.0,0.00021973,2]
[367128034,1750665046571,-500.0,0.00021973,2]
[367128035,1750665046581,-500.0,0.00021973,2]
[367128036,1750665046590,-500.0,0.00021973,2]
[367128037,1750665046600,-500.0,0.00021973,2]
[367128038,1750665046610,-500.0,0.00021973,2]
[367128040,1750665046620,-500.0,0.00021973,2]
[367128041,1750665046629,-500.0,0.00021973,2]
[367128044,1750665046650,-211.08068204,0.00021973,2]
[367128046,1750665046661,-502.2469423,0.00021973,2]
[367128048,1750665046671,-500.0,0.00021973,2]
[367128050,1750665046681,-500.72944794,0.00021973,2]
[367128052,1750665046691,-300.0019758,0.00021973,2]
[367128054,1750665046702,-500.0,0.00021973,2]
[367128056,1750665046712,-500.0,0.00021973,2]
[367128058,1750665046723,-366.36247253,0.00021973,2]
[367128060,1750665046733,-500.0,0.00021973,2]
[367128063,1750665046744,-501.31662438,0.00021973,2]
[367128065,1750665046754,-500.0,0.00021973,2]
[367128067,1750665046764,-500.0,0.00021973,2]
[367128069,1750665046775,-355.19936786,0.00021973,2]
[367128071,1750665046786,-500.0,0.00021973,2]
[367128073,1750665046796,-167.62540763,0.00021973,2]
[367128075,1750665046807,-500.0,0.00021973,2]
[367128077,1750665046818,-200.0,0.00021999,2]
[367128079,1750665046828,-151.0,0.00021999,2]
[367128081,1750665046839,-151.0,0.00021999,2]
[367128083,1750665046849,-151.0,0.00021999,2]
[367128085,1750665046860,-151.0,0.00021999,2]
[367128088,1750665046870,-151.0,0.00021999,2]
[367128090,1750665046881,-500.0,0.00021999,2]
[367128092,1750665046891,-151.0,0.00021999,2]
[367128094,1750665046901,-19057.62473238,0.00022,2]
[367128096,1750665046912,-28569.83580411,0.00022,2]
[367128098,1750665046925,-147800.06465128,0.00022,2]
[367128168,1750665047613,-460.0,0.00021917,2]
[367128170,1750665047623,-460.0,0.00021917,2]
[367128172,1750665047633,-62410.52420972,0.00022,2]
[367134466,1750665113068,150.0,0.00021601,30]
[367134501,1750665113397,150.0,0.00023565,30]
[367135517,1750665185589,150.0,0.00021589,30]
[367135525,1750665832774,212.560902,0.00013699,2]
[367135526,1750665991142,904.0,0.0002,2]
[367135527,1750666031106,-212.560902,0.00020187,2]
[367135528,1750666031128,-240.714819,0.0002035,2]
[367135529,1750666031151,-207.4,0.00020899,2]
[367135530,1750666031174,-1200.0,0.00020908,2]
[367135531,1750666031196,-300.0,0.00020909,2]
[367135532,1750666031219,-300.0,0.00020909,2]
[367135533,1750666031248,-300.0,0.00020909,2]
[367135534,1750666031521,-300.0,0.00020909,2]
[367135535,1750666031546,-300.0,0.00020909,2]
[367135536,1750666031568,-1692.26430959,0.0002091,2]
[367135538,1750666049509,3674.28585706,0.0002,2]
[367135539,1750666059537,159.0,0.0002,3]
[367135547,1750666232780,-185.41880839,0.0002081,2]
[367135548,1750666232790,-300.0,0.00020899,2]
[367135549,1750666232800,-300.0,0.00020899,2]
[367135550,1750666232811,-1200.0,0.00020899,2]
[367135551,1750666232820,-724.76405364,0.00020899,2]
[367135552,1750666232830,-207.4,0.00020899,2]
[367135553,1750666232841,-57563.06229917,0.000209,2]
[367135609,1750666238690,-14504.88765314,0.000209,2]
[367135610,1750666238700,-23207.73569041,0.0002091,2]
[367135611,1750666238709,-349.09290838,0.00020929,2]
[367135612,1750666238719,-211.3272506,0.00020999,2]
[367135613,1750666238729,-406.0,0.00021227,2]
[367135614,1750666238739,-406.0,0.00021227,2]
[367135615,1750666238748,-185.41880834,0.00021382,2]
[367135616,1750666238758,-155.4107927,0.000217,2]
[367135617,1750666238768,-228.83,0.00021761,2]
[367135618,1750666238777,-403.26274804,0.00021793,2]
[367135619,1750666238787,-2419.87540986,0.000219,2]
[367135620,1750666238796,-245.0,0.00021904,2]
[367135621,1750666238806,-563.48,0.00021907,3]
[367135622,1750666238816,-281.74,0.00021907,3]
[367135623,1750666238826,-845.26,0.00021907,3]
[367135624,1750666238836,-4274.27408473,0.00021907,2]
[367135625,1750666238846,-500.0,0.00021915,2]
[367135626,1750666238856,-447.01449666,0.00021915,2]
[367135627,1750666238867,-500.0,0.00021915,2]
[367135628,1750666238878,-500.0,0.00021915,2]
[367135629,1750666238888,-500.0,0.00021915,2]
[367135630,1750666238898,-650.7184595,0.00021915,2]
[367135631,1750666238907,-650.0,0.00021915,2]
[367135632,1750666238917,-500.0,0.00021915,2]
[367135633,1750666238926,-500.0,0.00021915,2]
[367135634,1750666238936,-500.0,0.00021915,2]
[367135635,1750666238947,-194.72,0.00021915,2]
[367135636,1750666238957,-8603.17812108,0.00021915,2]
[367135637,1750666238967,-160.0,0.00021916,2]
[367135638,1750666238977,-160.0,0.00021916,2]
[367135639,1750666238986,-846.53928378,0.00021916,2]
[367135640,1750666238996,-12553.69357174,0.00021916,2]
[367135641,1750666239006,-836.70095952,0.00021916,2]
[367135642,1750666239015,-160.0,0.00021916,2]
[367135643,1750666239025,-160.0,0.00021916,2]
[367135644,1750666239035,-213.63163053,0.00021916,2]
[367135645,1750666239045,-230.18214666,0.00021916,2]
[367135646,1750666239055,-500.0,0.00021916,7]
[367135647,1750666239064,-460.0,0.00021917,2]
[367135648,1750666239074,-460.0,0.00021917,2]
[367135649,1750666239084,-460.0,0.00021917,2]
[367135650,1750666239094,-460.0,0.00021917,2]
[367135651,1750666239103,-664.35,0.00021917,2]
[367135652,1750666239113,-460.0,0.00021917,2]
[367135653,1750666239123,-460.0,0.00021917,2]
[367135654,1750666239133,-460.0,0.00021917,2]
[367135655,1750666239143,-541.55,0.00021917,2]
[367135656,1750666239153,-460.0,0.00021917,2]
[367135657,1750666239163,-460.0,0.00021917,2]
[367135658,1750666239172,-460.0,0.00021917,2]
[367135659,1750666239182,-460.0,0.00021917,2]
[367135660,1750666239192,-232.0,0.00021917,2]
[367135661,1750666239202,-460.0,0.00021917,2]
[367135662,1750666239212,-460.0,0.00021917,2]
[367135663,1750666239222,-460.0,0.00021917,2]
[367135664,1750666239231,-460.0,0.00021917,2]
[367135665,1750666239241,-460.0,0.00021917,2]
[367135666,1750666239251,-460.0,0.00021917,2]
[367135667,1750666239261,-460.0,0.00021917,2]
[367135668,1750666239271,-460.0,0.00021917,2]
[367135669,1750666239280,-460.0,0.00021917,2]
[367135670,1750666239290,-386.22210544,0.00021917,2]
[367135671,1750666239299,-460.0,0.00021917,2]
[367135672,1750666239308,-460.0,0.00021917,2]
[367135673,1750666239318,-460.0,0.00021917,2]
[367135674,1750666239328,-460.0,0.00021917,2]
[367135675,1750666239338,-460.0,0.00021917,2]
[367135676,1750666239347,-460.0,0.00021917,2]
[367135677,1750666239357,-460.0,0.00021917,2]
[367135678,1750666239366,-359.54710579,0.00021917,2]
[367135679,1750666239376,-460.0,0.00021917,2]
[367135680,1750666239386,-460.0,0.00021917,2]
[367135681,1750666239396,-460.0,0.00021917,2]
[367135682,1750666239406,-460.0,0.00021917,2]
[367135683,1750666239415,-1000.0,0.00021917,2]
[367135684,1750666239425,-460.0,0.00021917,2]
[367135685,1750666239435,-460.0,0.00021917,2]
[367135686,1750666239444,-460.0,0.00021917,2]
[367135687,1750666239454,-460.0,0.00021917,2]
[367135688,1750666239464,-460.0,0.00021917,2]
[367135689,1750666239474,-460.0,0.00021917,2]
[367135690,1750666239487,-460.0,0.00021917,2]
[367135691,1750666239496,-460.0,0.00021917,2]
[367135692,1750666239506,-460.0,0.00021917,2]
[367135693,1750666239515,-460.0,0.00021917,2]
[367135694,1750666239526,-460.0,0.00021917,2]
[367135695,1750666239536,-460.0,0.00021917,2]
[367135696,1750666239545,-460.0,0.00021917,2]
[367135697,1750666239556,-625.02,0.00021917,2]
[367135698,1750666239566,-460.0,0.00021917,2]
[367135699,1750666239576,-897.81,0.00021917,2]
[367135700,1750666239586,-460.0,0.00021917,2]
[367135701,1750666239596,-337.50114976,0.00021917,2]
[367135702,1750666239606,-460.0,0.00021917,2]
[367135703,1750666239616,-460.0,0.00021917,2]
[367135704,1750666239626,-460.0,0.00021917,2]
[367135705,1750666239636,-460.0,0.00021917,2]
[367135706,1750666239646,-460.0,0.00021917,2]
[367135707,1750666239655,-460.0,0.00021917,2]
[367135708,1750666239664,-460.0,0.00021917,2]
[367135709,1750666239674,-451.57756083,0.00021917,2]
[367135710,1750666239683,-460.0,0.00021917,2]
[367135711,1750666239692,-460.0,0.00021917,2]
[367135712,1750666239702,-519.19,0.00021917,2]
[367135713,1750666239711,-460.0,0.00021917,2]
[367135714,1750666239721,-460.0,0.00021917,2]
[367135715,1750666239732,-460.0,0.00021917,2]
[367135716,1750666239742,-460.0,0.00021917,2]
[367135717,1750666239752,-460.0,0.00021917,2]
[367135718,1750666239762,-460.0,0.00021917,2]
[367135719,1750666239771,-460.0,0.00021917,2]
[367135720,1750666239781,-17.0368351,0.00021917,2]
[367135721,1750666239835,-442.9631649,0.00021917,2]
[367135722,1750666239845,-460.0,0.00021917,2]
[367135723,1750666239854,-460.0,0.00021917,2]
[367135724,1750666239864,-559.12,0.00021917,2]
[367135725,1750666239873,-460.0,0.00021917,2]
[367135726,1750666239882,-460.0,0.00021917,2]
[367135727,1750666239894,-460.0,0.00021917,2]
[367135728,1750666239903,-460.0,0.00021917,2]
[367135729,1750666239913,-539.04,0.00021917,2]
[367135730,1750666239922,-460.0,0.00021917,2]
[367135731,1750666239932,-460.0,0.00021917,2]
[367135732,1750666239942,-460.0,0.00021917,2]
[367135733,1750666239951,-568.48,0.00021917,2]
[367135734,1750666239961,-460.0,0.00021917,2]
[367135735,1750666239970,-460.0,0.00021917,2]
[367135736,1750666239979,-460.0,0.00021917,2]
[367135737,1750666239989,-460.0,0.00021917,2]
[367135738,1750666239999,-460.0,0.00021917,2]
[367135739,1750666240008,-460.0,0.00021917,2]
[367135740,1750666240018,-403.78421503,0.00021917,2]
[367135741,1750666240027,-460.0,0.00021917,2]
[367135742,1750666240038,-597.85,0.00021917,2]
[367135743,1750666240048,-460.0,0.00021917,2]
[367135744,1750666240059,-460.0,0.00021917,2]
[367135745,1750666240068,-460.0,0.00021917,2]
[367135746,1750666240078,-460.0,0.00021917,2]
[367135747,1750666240088,-608.11266463,0.00021917,2]
[367135748,1750666240098,-1100.09,0.00021917,2]
[367135749,1750666240108,-202.89681283,0.00021917,2]
[367135750,1750666240118,-460.0,0.00021917,2]
[367135751,1750666240127,-396.47514336,0.00021917,2]
[367135752,1750666240139,-460.0,0.00021917,2]
[367135753,1750666240149,-460.0,0.00021917,2]
[367135754,1750666240159,-457.1969953,0.00021917,2]
[367135756,1750666240169,-460.0,0.00021917,2]
[367135757,1750666240179,-460.0,0.00021917,2]
[367135758,1750666240189,-959.1,0.00021917,2]
[367135759,1750666240199,-460.0,0.00021917,2]
[367135760,1750666240209,-460.0,0.00021917,2]
[367135762,1750666240219,-967.02,0.00021917,2]
[367135763,1750666240229,-460.0,0.00021917,2]
[367135764,1750666240238,-460.0,0.00021917,2]
[367135765,1750666240248,-763.3,0.00021917,2]
[367135766,1750666240258,-841.16,0.00021917,2]
[367135767,1750666240268,-460.18590287,0.00021917,2]
[367135768,1750666240278,-301.17698908,0.00021917,2]
[367135769,1750666240287,-460.0,0.00021917,2]
[367135770,1750666240297,-460.0,0.00021917,2]
[367135771,1750666240307,-460.0,0.00021917,2]
[367135772,1750666240317,-682.5,0.00021917,2]
[367135773,1750666240327,-460.0,0.00021917,2]
[367135774,1750666240337,-571.16035282,0.00021917,2]
[367135775,1750666240347,-460.0,0.00021917,2]
[367135776,1750666240356,-460.0,0.00021917,2]
[367135777,1750666240366,-460.0,0.00021917,2]
[367135778,1750666240375,-460.0,0.00021917,2]
[367135779,1750666240385,-206.52037536,0.00021917,2]
[367135780,1750666240395,-460.0,0.00021917,2]
[367135781,1750666240404,-460.0,0.00021917,2]
[367135782,1750666240414,-551.33074097,0.00021917,2]
[367135783,1750666240424,-1844.22,0.00021917,2]
[367135784,1750666240433,-460.0,0.00021917,2]
[367135785,1750666240443,-460.0,0.00021917,2]
[367135786,1750666240452,-500.0,0.00021917,2]
[367135787,1750666240462,-460.0,0.00021917,2]
[367135788,1750666240471,-537.41,0.00021917,2]
[367135789,1750666240481,-460.0,0.00021917,2]
[367135790,1750666240494,-460.0,0.00021917,2]
[367135792,1750666240504,-460.0,0.00021917,2]
[367135793,1750666240513,-460.0,0.00021917,2]
[367135794,1750666240523,-460.0,0.00021917,2]
[367135795,1750666240534,-1221.85,0.00021917,2]
[367135796,1750666240544,-460.0,0.00021917,2]
[367135797,1750666240554,-461.05888693,0.00021917,2]
[367135798,1750666240566,-689.23,0.00021917,2]
[367135799,1750666240577,-460.0,0.00021917,2]
[367135800,1750666240587,-460.0,0.00021917,2]
[367135801,1750666240597,-460.0,0.00021917,2]